bitfinex/quotes_ETHUSD_20260307
["timestamp","ask_amount","ask_price","bid_price","bid_amount"]
[1772898042722,1.301,1978.1,1977.0,1.2644977]
[1772898042723,0.4743115,1977.8,1977.0,1.2644977]
[1772898042925,0.4743115,1977.6,1976.9,5.05827396]
[1772898043525,5.05582507,1978.0,1976.9,5.05827396]
[1772898043526,1.73815053,1978.1,1977.1,0.4970313]
[1772898043727,0.4743115,1978.0,1977.4,0.0011]
[1772898044163,0.4743115,1978.0,1977.3,0.0011]
[1772898044372,0.4743115,1977.8,1977.3,0.0011]
[1772898044726,0.4743115,1977.8,1976.5,0.4970313]
[1772898045156,0.4743115,1977.6,1976.6,1.76182943]
[1772898045581,0.4743115,1977.5,1976.6,1.76182943]
[1772898047360,0.4743115,1977.3,1976.7,0.0011]
[1772898048463,0.4743115,1977.3,1976.3,1.2951]
[1772898048700,0.4743115,1977.2,1976.3,0.0011]
[1772898049563,0.4743115,1977.0,1976.3,0.0011]
[1772898051298,0.4743115,1976.9,1976.3,0.0011]
[1772898051501,0.4743115,1976.7,1976.3,0.0011]
[1772898051787,0.4743115,1976.7,1975.7,0.4970313]
[1772898054175,1.7390565,1976.7,1975.9,0.4970313]
[1772898054558,0.4743115,1976.7,1975.9,0.4970313]
[1772898054760,1.73905683,1976.7,1975.9,0.4970313]
[1772898055266,0.4743115,1976.9,1975.9,0.4970313]
[1772898055471,0.4753115,1977.1,1975.9,0.4970313]
[1772898056175,0.4753115,1977.1,1976.0,1.26518218]
[1772898056176,1.73979593,1977.1,1976.0,1.26518218]
[1772898056362,1.73979593,1977.1,1976.2,0.4970313]
[1772898057686,0.4753115,1977.1,1976.2,0.4970313]
[1772898058285,0.001,1977.1,1976.4,0.4970313]
[1772898059569,0.001,1977.1,1976.4,1.7760313]
[1772898059889,0.001,1977.1,1976.5,0.4970313]
[1772898060393,0.001,1977.1,1976.7,0.4970313]
[1772898060777,1.26419687,1977.6,1976.8,0.48541625]
[1772898060985,1.73973946,1977.6,1976.8,0.48541625]
[1772898061189,1.73971518,1977.6,1976.8,0.48541625]
[1772898062380,1.73971518,1977.6,1976.9,1.72612214]
[1772898062998,0.45957363,1977.5,1976.6,0.46151594]
[1772898063300,0.45957363,1977.5,1976.4,1.7264191]
[1772898063499,0.45957363,1977.5,1976.4,1.26490316]
[1772898063673,0.45957363,1977.3,1976.2,1.26502742]
[1772898063874,0.45957363,1977.1,1976.2,1.26502742]
[1772898064588,0.45957363,1977.1,1976.1,5.06032505]
[1772898064589,1.26454223,1977.0,1976.1,1.26508307]
[1772898064901,1.26454223,1977.0,1976.0,1.72666403]
[1772898064902,0.45957363,1976.9,1976.0,1.72666403]
[1772898065802,0.45957363,1976.9,1975.9,1.26520419]
[1772898066005,0.45957363,1976.9,1975.8,1.72789827]
[1772898067102,0.45957363,1976.7,1976.3,0.0011]
[1772898067482,1.26461709,1976.9,1976.3,0.46261594]
[1772898067689,0.001,1977.0,1976.3,0.46261594]
[1772898069188,0.001,1977.0,1976.5,0.46151594]
[1772898069514,1.2643194,1977.4,1976.5,0.46151594]
[1772898070279,1.26426065,1977.5,1976.5,0.46151594]
[1772898070683,0.45957363,1977.4,1976.5,0.46151594]
[1772898071212,0.45957363,1977.4,1976.6,1.72631407]
[1772898071213,1.26435037,1977.3,1976.6,1.72631407]
[1772898072112,1.72390881,1977.4,1976.7,0.46151594]
[1772898073321,0.45957363,1977.4,1976.8,1.72618611]
[1772898073485,5.05667215,1977.6,1976.8,1.72618611]
[1772898073486,1.72378897,1977.6,1976.9,0.46151594]
[1772898073803,1.26421534,1977.6,1976.9,0.46151594]
[1772898074706,5.51579497,1977.8,1976.9,0.46151594]
[1772898074707,1.72364796,1977.8,1976.9,0.46151594]
[1772898075223,0.45957363,1977.7,1976.7,0.46151594]
[1772898075426,0.45957363,1977.5,1976.5,0.46151594]
[1772898075792,1.26415857,1977.6,1976.5,0.46151594]
[1772898076015,1.723719,1977.7,1976.5,0.46151594]
[1772898076199,1.26414537,1977.7,1976.5,0.46151594]
[1772898077217,1.72360437,1977.8,1976.5,0.46151594]
[1772898077418,1.72360437,1977.8,1976.7,0.46151594]
[1772898077715,7.36005944,1978.2,1976.7,0.46151594]
[1772898077716,5.05508991,1978.3,1976.7,0.46151594]
[1772898077918,5.51466354,1978.3,1976.7,0.46151594]
[1772898078107,0.45957363,1978.2,1976.7,0.46151594]
[1772898079489,0.45957363,1978.0,1976.9,0.46151594]
[1772898082016,1.26396683,1977.9,1977.1,0.46151594]
[1772898082219,5.05660038,1978.1,1977.1,0.46151594]
[1772898082220,0.001,1978.1,1977.1,0.46151594]
[1772898082390,1.26484847,1978.1,1977.1,0.46151594]
[1772898082591,0.46057363,1978.1,1977.1,0.46151594]
[1772898082796,1.72441876,1978.1,1977.1,0.46151594]
[1772898083001,0.46057363,1978.1,1977.1,0.46151594]
[1772898083420,1.72441713,1978.1,1977.1,0.46151594]
[1772898083703,0.001,1978.1,1977.1,0.46151594]
[1772898084109,0.001,1978.1,1977.3,0.46151594]
[1772898086031,0.001,1978.1,1977.5,0.46151594]
[1772898088014,0.001,1978.1,1977.6,1.26415857]
[1772898088214,0.001,1978.1,1977.7,0.46151594]
[1772898090536,0.001,1978.1,1977.8,1.26403074]
[1772898090726,0.001,1978.1,1977.7,1.72557132]
[1772898091245,0.001,1978.1,1977.8,0.46151594]
[1772898092451,0.001,1978.1,1977.7,1.26405538]
[1772898092624,0.49764487,1978.0,1977.5,1.26417479]
[1772898092828,0.49764487,1978.0,1977.5,1.75551643]
[1772898097114,1.76155321,1978.0,1977.5,1.75551643]
[1772898097948,0.49764487,1978.0,1977.5,1.75551643]
[1772898098123,1.76154975,1978.0,1977.5,1.75551643]
[1772898098322,0.49764487,1978.0,1977.5,1.75551643]
[1772898098632,1.7624866,1978.1,1977.6,0.49134164]
[1772898099933,1.7624866,1978.1,1977.6,1.75544953]
[1772898100157,0.001,1978.1,1977.7,0.49134164]
[1772898100634,1.76249297,1978.1,1977.6,1.26410789]
[1772898100835,1.76249297,1978.1,1977.6,1.75544953]
[1772898101152,0.49864487,1978.1,1977.6,1.75544953]
[1772898101337,0.49864487,1978.1,1977.7,0.49134164]
[1772898101522,0.001,1978.1,1977.7,0.49134164]
[1772898101720,0.001,1978.1,1977.8,1.75537238]
[1772898101944,0.001,1978.1,1977.9,0.49134164]
[1772898103350,1.76127323,1978.5,1977.9,0.49134164]
[1772898103351,1.76123778,1978.5,1977.9,0.49134164]
[1772898103555,0.49764487,1978.5,1977.9,0.49134164]
[1772898104129,1.76123399,1978.5,1978.0,1.26390293]
[1772898104329,1.76123399,1978.5,1978.0,1.75524457]
[1772898105254,0.49764487,1978.5,1978.0,1.75524457]
[1772898105465,1.76125489,1978.5,1978.0,1.75524457]
[1772898105958,0.49764487,1978.4,1977.6,0.49134164]
[1772898106331,0.49764487,1978.2,1977.6,1.75545507]
[1772898106525,0.49764487,1978.2,1977.6,0.49134164]
[1772898106831,0.49764487,1978.2,1977.5,1.26419433]
[1772898107358,0.49764487,1978.2,1977.2,1.75575596]
[1772898107730,0.49764487,1978.2,1977.2,0.49134164]
[1772898108665,0.49764487,1978.0,1977.2,1.75575046]
[1772898108991,0.49764487,1978.0,1977.1,0.0011]
[1772898108992,0.49764487,1978.0,1977.1,1.26554737]
[1772898109734,0.49764487,1978.0,1977.1,1.75688901]
[1772898109938,0.49764487,1978.0,1977.2,0.49134164]
[1772898110857,1.76154973,1978.0,1977.4,0.49134164]
[1772898111660,1.76156835,1978.0,1977.4,0.49134164]
[1772898112163,0.49764487,1977.9,1977.3,1.75569201]
[1772898114947,1.76164617,1977.9,1977.4,0.49134164]
[1772898117739,6.3826573,1978.4,1977.1,0.0011]
[1772898117740,0.49764487,1977.8,1977.1,0.0011]
[1772898120267,1.26409465,1977.7,1977.1,1.26557827]
[1772898120474,0.49764487,1977.6,1977.1,1.26557827]
[1772898120675,0.49764487,1978.0,1977.2,0.49134164]
[1772898120974,0.49764487,1977.9,1977.2,0.49134164]
[1772898121377,0.49764487,1977.9,1977.2,0.49244164]
[1772898121678,1.26390293,1978.0,1977.2,0.49244164]
[1772898121679,0.001,1978.0,1977.2,0.49244164]
[1772898122956,0.001,1978.0,1977.3,1.26435037]
[1772898123274,0.001,1978.0,1977.4,0.4832088]
[1772898123996,0.49894907,1978.0,1977.2,1.74867352]
[1772898124578,0.49894907,1978.0,1977.2,1.7487027]
[1772898124789,0.49794907,1977.8,1977.2,0.0011]
[1772898124991,0.49794907,1977.8,1977.2,1.26550711]
[1772898126482,1.26396683,1977.9,1977.2,1.74871591]
[1772898126781,1.26494527,1978.0,1977.4,1.26428643]
[1772898126945,1.26494527,1978.0,1977.4,1.74749523]
[1772898127148,1.76289434,1978.0,1977.4,1.74749523]
[1772898127350,1.76289434,1978.0,1977.4,1.26428643]
[1772898127351,0.49794907,1977.9,1977.4,1.26428643]
[1772898128186,1.26494527,1978.0,1977.5,0.4832088]
[1772898128386,0.001,1978.0,1977.5,0.4832088]
[1772898129795,0.001,1978.0,1977.6,1.74736737]
[1772898130159,0.001,1978.0,1977.6,0.4832088]
[1772898132260,0.001,1978.0,1977.6,1.74732543]
[1772898132456,0.001,1978.0,1977.7,0.4832088]
[1772898134486,0.001,1978.0,1977.8,1.26403074]
[1772898134688,0.001,1978.0,1977.8,1.74723954]
[1772898135379,0.49894907,1978.4,1977.9,0.4832088]
[1772898135573,0.001,1978.4,1977.9,0.4832088]
[1772898136178,0.49794907,1978.3,1977.7,0.4832088]
[1772898136382,0.49794907,1978.3,1977.7,1.74727552]
[1772898137199,1.26377514,1978.2,1977.7,1.74727552]
[1772898137605,1.76172421,1978.2,1977.7,1.74727552]
[1772898138297,0.49794907,1978.2,1977.7,1.74727552]
[1772898140300,0.49794907,1978.2,1977.8,0.4832088]
[1772898141304,1.76170575,1978.3,1977.8,0.4832088]
[1772898141672,1.26375668,1978.3,1977.8,0.4832088]
[1772898141865,0.49794907,1978.2,1977.6,0.4832088]
[1772898142067,0.49794907,1978.2,1977.5,1.307]
[1772898142374,0.49794907,1978.2,1977.5,2.57121989]
[1772898142788,0.49794907,1978.0,1977.5,2.57121989]
[1772898142996,0.49794907,1978.0,1977.5,3.05442869]
[1772898143798,0.49794907,1978.2,1977.6,0.4832088]
[1772898144974,1.76176877,1978.2,1977.7,1.26409465]
[1772898145799,1.76176877,1978.2,1977.7,0.4832088]
[1772898146000,1.2637549,1978.3,1977.7,0.4832088]
[1772898146527,1.76170397,1978.3,1977.7,0.4832088]
[1772898147097,1.26467496,1978.4,1977.7,0.4832088]
[1772898147296,1.76262403,1978.4,1977.7,0.4832088]
[1772898147477,0.49894907,1978.4,1977.7,0.4832088]
[1772898147672,0.49894907,1978.4,1977.9,0.4832088]
[1772898147872,0.001,1978.2,1977.9,1.74713702]
[1772898148303,0.001,1978.2,1978.0,0.4832088]
[1772898151195,0.001,1978.2,1978.0,1.74710281]
[1772898151606,0.49894907,1978.2,1977.8,0.0011]
[1772898152716,0.49894907,1978.2,1977.7,0.0011]
[1772898152717,0.45706131,1978.0,1977.7,0.0011]
[1772898154607,1.26396683,1977.9,1977.7,0.0011]
[1772898155118,1.72102814,1977.9,1977.7,0.0011]
[1772898158419,0.45706131,1977.8,1977.7,0.0011]
[1772898159218,0.45706131,1977.8,1977.5,0.0011]
[1772898160691,1.72113911,1977.8,1977.5,0.0011]
[1772898161426,1.2640778,1977.8,1977.5,0.0011]
[1772898161629,0.45706131,1977.7,1977.5,0.0011]
[1772898163525,1.26415857,1977.6,1977.5,0.0011]
[1772898163822,1.72120312,1977.7,1977.5,0.0011]
[1772898166220,0.45706131,1977.7,1977.5,0.0011]
[1772898167122,1.72116307,1977.7,1977.5,0.0011]
[1772898167310,1.26410176,1977.7,1977.5,0.0011]
[1772898167513,1.72112519,1977.8,1977.5,0.0011]
[1772898169127,0.45706131,1977.7,1977.5,0.0011]
[1772898170827,1.72117426,1977.7,1977.5,0.0011]
[1772898173113,1.26499574,1977.9,1977.5,0.0011]
[1772898173313,1.26499574,1977.9,1977.6,0.0011]
[1772898173521,0.45706131,1977.8,1977.6,0.0011]
[1772898175634,1.72115596,1977.7,1977.6,0.0011]
[1772898176559,0.45706131,1977.6,1977.3,0.0011]
[1772898176833,0.45706131,1977.6,1977.3,0.49317626]
[1772898177709,1.72123116,1977.6,1977.3,0.49317626]
[1772898183236,0.45706131,1977.6,1977.3,1.75752591]
[1772898183526,1.26414489,1977.7,1977.3,1.75751964]
[1772898183733,1.26414489,1977.7,1977.4,0.45343131]
[1772898186445,0.001,1977.6,1977.5,0.0011]
[1772898186735,0.001,1977.6,1977.4,0.0011]
[1772898186736,0.50027256,1977.6,1977.4,0.0011]
[1772898187445,0.50027256,1977.6,1977.2,0.0011]
[1772898188011,1.26521199,1977.6,1977.2,0.45453131]
[1772898188212,0.001,1977.6,1977.2,0.45453131]
[1772898190027,0.001,1977.6,1977.4,0.45343131]
[1772898190209,0.001,1977.9,1977.3,1.26435037]
[1772898190409,0.002,1977.9,1977.4,0.45343131]
[1772898193142,0.002,1977.9,1977.6,0.45343131]
[1772898195347,0.002,1977.9,1977.6,1.71758332]
[1772898195559,0.002,1977.9,1977.7,0.45343131]
[1772898196353,0.50127256,1977.9,1977.6,0.45343131]
[1772898197657,0.50127256,1977.9,1977.6,1.71758813]
[1772898197830,0.50127256,1977.9,1977.7,0.45343131]
[1772898197831,0.002,1977.9,1977.7,0.45343131]
[1772898198730,0.001,1977.9,1977.7,0.45343131]
[1772898199624,0.001,1977.8,1977.7,0.45343131]
[1772898200050,0.001,1977.8,1977.7,1.71752596]
[1772898200257,0.001,1977.8,1977.7,0.45343131]
[1772898203361,0.001,1977.8,1977.7,1.71752596]
[1772898205355,0.001,1977.8,1977.7,0.45343131]
[1772898207566,0.001,1977.8,1977.7,1.71752596]
[1772898207766,0.001,1977.8,1977.7,0.45343131]
[1772898208370,0.001,1977.8,1977.7,1.71752596]
[1772898208550,0.001,1977.8,1977.7,0.45343131]
[1772898209470,0.50027256,1977.8,1977.5,0.0001]
[1772898210351,1.76431063,1977.8,1977.5,0.45353131]
[1772898210552,0.50027256,1977.8,1977.5,0.45353131]
[1772898210769,1.76432163,1977.8,1977.5,0.45353131]
[1772898211364,1.76432163,1977.8,1977.6,0.0011]
[1772898212446,0.23050664,1977.7,1977.6,0.0011]
[1772898213258,0.23050664,1977.7,1977.5,0.0001]
[1772898213877,0.22940664,1977.6,1977.5,0.0001]
[1772898215573,0.22940664,1977.6,1977.3,0.0011]
[1772898215778,0.22940664,1977.4,1977.1,0.0011]
[1772898217876,1.26435037,1977.3,1977.1,0.0011]
[1772898220484,0.22940664,1977.4,1977.1,0.0011]
[1772898220667,0.22940664,1977.6,1977.1,0.45477582]
[1772898222392,0.22940664,1977.4,1977.1,0.45477582]
[1772898222687,0.22940664,1977.4,1977.1,0.0011]
[1772898224161,0.22940664,1977.4,1977.2,0.0011]
[1772898224478,1.49373619,1977.4,1977.2,0.0011]
[1772898224681,0.22940664,1977.4,1977.2,0.0011]
[1772898224868,1.49370432,1977.4,1977.2,0.0011]
[1772898227586,0.22940664,1977.4,1977.2,0.0011]
[1772898227773,1.49370448,1977.4,1977.2,0.0011]
[1772898229112,0.22940664,1977.4,1977.2,0.0011]
[1772898229788,1.49464893,1977.5,1977.2,0.45477582]
[1772898233973,0.001,1977.5,1977.3,0.45367582]
[1772898237198,0.001,1977.5,1977.3,0.45477582]
[1772898237398,0.001,1977.4,1977.3,0.45477582]
[1772898241615,0.001,1977.4,1977.3,1.71912619]
[1772898241803,0.001,1977.8,1977.4,0.49076654]
[1772898243297,0.001,1977.8,1977.6,0.4543243]
[1772898244482,0.001,1978.2,1977.9,0.4543243]
[1772898245410,0.001,1978.2,1978.0,0.4543243]
[1772898247711,0.001,1978.2,1978.1,0.4543243]
[1772898248814,0.001,1978.4,1978.2,0.4543243]
[1772898249822,1.495917,1978.7,1978.3,0.4543243]
[1772898250130,0.23240664,1978.7,1978.3,0.4543243]
[1772898250339,1.49587155,1978.7,1978.3,0.4543243]
[1772898251399,0.23140664,1978.6,1978.3,0.4543243]
[1772898253140,1.49587155,1978.7,1978.3,0.4543243]
[1772898253447,1.26446491,1978.7,1978.4,0.4543243]
[1772898254142,0.001,1978.7,1978.4,0.4543243]
[1772898254647,0.001,1978.7,1978.4,1.71792096]
[1772898254938,0.001,1978.7,1978.4,0.4543243]
[1772898256335,0.23240664,1978.7,1978.2,0.4543243]
[1772898256539,0.23140664,1978.6,1978.2,1.71809613]
[1772898258046,0.23140664,1978.6,1978.2,1.26377183]
[1772898258248,0.23140664,1978.6,1978.3,0.4543243]
[1772898260649,1.49590414,1978.7,1978.3,0.4543243]
[1772898261255,1.49590414,1978.7,1978.3,1.71803507]
[1772898261422,1.49590414,1978.7,1978.4,0.4543243]
[1772898261952,1.49590414,1978.7,1978.4,0.4554243]
[1772898262152,0.001,1978.5,1978.4,0.4554243]
[1772898264672,0.23240664,1978.5,1978.3,0.0011]
[1772898264870,0.001,1978.5,1978.3,0.0011]
[1772898265063,0.001,1978.5,1978.3,0.4554243]
[1772898266272,1.26458352,1978.5,1978.3,0.4554243]
[1772898266571,0.001,1978.5,1978.3,0.4554243]
[1772898270050,0.001,1978.5,1978.3,1.71913064]
[1772898270250,0.001,1978.5,1978.4,0.4543243]
[1772898274691,0.001,1978.5,1978.3,0.0011]
[1772898274692,0.23130664,1978.5,1978.3,0.0011]
[1772898274893,0.23130664,1978.5,1978.1,0.0011]
[1772898275701,0.23130664,1978.5,1978.4,0.0011]
[1772898275902,0.23130664,1978.5,1978.1,0.0011]
[1772898276474,0.22920664,1978.3,1978.1,0.0011]
[1772898279514,1.49292595,1978.3,1978.1,0.0011]
[1772898283192,0.22920664,1978.3,1978.1,0.0011]
[1772898283391,1.49290225,1978.4,1978.1,0.47306617]
[1772898287993,1.49290225,1978.4,1978.2,0.0011]
[1772898288210,1.26469561,1978.4,1978.2,0.47306617]
[1772898291118,0.001,1978.4,1978.2,0.47306617]
[1772898300103,0.23020664,1978.4,1978.2,0.0011]
[1772898300833,0.001,1978.4,1978.2,0.45201536]
[1772898301929,0.001,1978.4,1978.3,0.0011]
[1772898307427,0.001,1978.4,1978.3,0.4772276]
[1772898308445,0.001,1978.4,1978.1,0.0011]
[1772898308446,0.23020664,1978.4,1978.1,0.0011]
[1772898308609,0.23020664,1978.4,1978.1,0.4772276]
[1772898308814,0.001,1978.4,1978.2,0.4761276]
[1772898313042,0.22910664,1978.7,1978.3,0.4761276]
[1772898313344,0.001,1978.7,1978.3,0.4761276]
[1772898314745,0.001,1978.7,1978.5,0.4761276]
[1772898316054,1.26435626,1978.9,1978.5,0.4761276]
[1772898316245,1.26435626,1978.9,1978.4,0.4761276]
[1772898316246,0.001,1978.9,1978.4,0.4761276]
[1772898316810,0.001,1978.9,1978.6,0.4761276]
[1772898319214,0.001,1978.9,1978.7,0.4761276]
[1772898320629,0.23010664,1979.2,1978.7,0.4761276]
[1772898321643,0.23010664,1979.2,1978.9,0.4761276]
[1772898321847,0.001,1979.2,1978.9,0.4761276]
[1772898322646,0.001,1979.2,1978.5,0.4761276]
[1772898322647,0.22910664,1979.1,1978.5,0.4761276]
[1772898322849,0.22910664,1979.1,1978.6,0.4761276]
[1772898323737,1.49237091,1979.0,1978.6,0.4761276]
[1772898326547,0.22910664,1978.9,1978.6,0.4761276]
[1772898327128,0.22910664,1978.9,1978.7,0.0011]
[1772898327637,0.22910664,1978.9,1978.3,1.26475816]
[1772898327638,0.22910664,1978.9,1978.5,0.0011]
[1772898327952,0.22910664,1978.9,1978.4,0.0011]
[1772898328253,0.22800664,1978.7,1978.4,0.0011]
[1772898330154,1.26351966,1978.6,1978.4,0.0011]
[1772898330325,1.4915263,1978.6,1978.4,0.0011]
[1772898331551,0.22800664,1978.5,1978.4,0.0011]
[1772898334055,0.22690664,1978.4,1978.2,0.0011]
[1772898338433,1.49057101,1978.4,1978.2,0.0011]
[1772898338767,0.22690664,1978.4,1978.2,0.0011]
[1772898339352,0.22690664,1978.4,1978.3,0.0011]
[1772898339763,1.49055403,1978.4,1978.3,0.0011]
[1772898340363,0.22690664,1978.4,1978.3,0.0011]
[1772898340866,1.49055403,1978.4,1978.3,0.0011]
[1772898342265,0.22690664,1978.4,1978.3,0.0011]
[1772898343359,1.49055403,1978.4,1978.3,0.0011]
[1772898343663,0.22690664,1978.3,1978.1,0.0011]
[1772898343869,0.22690664,1978.3,1978.0,0.0011]
[1772898344668,0.22690664,1978.3,1978.0,0.46563864]
[1772898344866,1.26364739,1978.4,1978.0,0.46563864]
[1772898345276,1.48945403,1978.4,1978.0,0.46563864]
[1772898345436,0.22580664,1978.3,1978.0,0.46563864]
[1772898345638,1.26364739,1978.4,1978.0,0.46563864]
[1772898345977,1.48945403,1978.4,1978.0,0.46563864]
[1772898351041,1.48945403,1978.4,1978.1,0.0011]
[1772898351244,0.001,1978.3,1978.1,0.0011]
[1772898352052,1.48958178,1978.2,1978.1,0.0011]
[1772898352369,0.22470664,1978.1,1977.9,0.0011]
[1772898355346,1.26390293,1978.0,1977.9,0.0011]
[1772898355543,1.48860957,1978.0,1977.9,0.0011]
[1772898355749,0.22470664,1977.9,1977.7,0.0011]
[1772898357847,1.48872375,1977.9,1977.7,0.0011]
[1772898358255,1.2639424,1978.0,1977.7,0.46563864]
[1772898359179,1.48864904,1978.0,1977.7,0.46563864]
[1772898359480,1.2639424,1978.0,1977.7,0.46563864]
[1772898359773,0.22470664,1978.1,1977.7,0.46563864]
[1772898360150,0.001,1978.3,1977.8,0.46453864]
[1772898360471,1.26471458,1978.3,1977.8,0.46453864]
[1772898360686,1.48942122,1978.3,1977.8,0.46453864]
[1772898361648,1.26471458,1978.3,1977.8,0.46453864]
[1772898362182,0.22570664,1978.3,1977.8,0.46453864]
[1772898362383,0.22570664,1978.3,1977.7,0.45874343]
[1772898362587,0.22570664,1978.3,1977.7,0.0011]
[1772898362788,0.22570664,1978.3,1977.7,0.45874343]
[1772898363173,0.22570664,1978.3,1977.9,0.0011]
[1772898364604,0.22470664,1978.1,1977.9,0.0011]
[1772898365192,0.22470664,1978.1,1977.8,0.0011]
[1772898366116,0.22470664,1978.1,1977.6,0.0011]
[1772898366966,1.26390293,1978.0,1977.6,0.0011]
[1772898367292,0.22360664,1977.9,1977.6,0.0011]
[1772898368693,0.22360664,1977.9,1977.5,0.0011]
[1772898369689,1.26403074,1977.8,1977.5,0.0011]
[1772898369889,0.22360664,1977.7,1977.5,0.0011]
[1772898370686,0.22360664,1977.7,1977.3,0.0011]
[1772898371683,0.22360664,1977.7,1977.1,0.45874343]
[1772898371684,1.2642225,1977.5,1977.1,0.45874343]
[1772898371884,0.22250664,1977.4,1977.1,0.45874343]
[1772898372079,1.2642225,1977.5,1977.1,0.45874343]
[1772898372280,1.48672914,1977.5,1977.1,0.45874343]
[1772898373893,0.22250664,1977.4,1977.0,0.0011]
[1772898374098,0.22250664,1977.3,1976.3,0.45764343]
[1772898374575,0.22250664,1977.2,1976.3,0.45764343]
[1772898375873,1.48698491,1977.1,1977.0,0.0011]
[1772898376197,5.05689001,1977.6,1977.0,0.45874343]
[1772898376198,1.26420813,1977.6,1977.0,0.45874343]
[1772898376499,0.22250664,1977.7,1977.0,0.45874343]
[1772898376699,1.26482423,1978.2,1977.0,0.45874343]
[1772898376886,1.48733087,1978.2,1977.0,0.45874343]
[1772898377879,1.48733087,1978.2,1977.2,0.45764343]
[1772898378093,0.22350664,1978.2,1977.2,0.45764343]
[1772898378310,0.001,1978.2,1977.2,0.45764343]
[1772898380098,0.001,1978.2,1977.4,0.45764343]
[1772898382117,0.001,1978.2,1977.6,0.45764343]
[1772898384398,1.26477514,1978.2,1977.6,1.72178956]
[1772898384626,1.26477514,1978.2,1977.7,0.45764343]
[1772898386426,0.001,1978.2,1977.8,1.26403074]
[1772898386628,0.001,1978.2,1977.9,0.45764343]
[1772898387733,0.001,1978.3,1977.9,0.45764343]
[1772898388105,0.001,1978.1,1977.9,0.45764343]
[1772898388506,0.001,1978.1,1978.0,0.45764343]
[1772898390127,0.001,1978.3,1978.0,0.45764343]
[1772898390628,0.001,1978.3,1978.1,0.45764343]
[1772898390832,1.2635413,1978.6,1978.1,0.45764343]
[1772898391014,1.48683475,1978.9,1978.1,0.45764343]
[1772898391703,1.26332811,1978.9,1978.1,0.45764343]
[1772898392730,1.26332811,1978.9,1978.3,0.49882782]
[1772898393733,1.48683475,1978.9,1978.3,0.49882782]
[1772898395130,1.48683475,1978.9,1978.4,0.49882782]
[1772898396031,5.05431244,1979.0,1978.4,0.49882782]
[1772898396032,0.001,1979.0,1978.4,0.49882782]
[1772898396202,1.26427605,1979.0,1978.4,0.49882782]
[1772898397204,0.001,1979.0,1978.6,0.49882782]
[1772898399338,0.001,1979.0,1978.8,0.49882782]
[1772898399521,0.001,1979.2,1978.8,0.49882782]
[1772898400311,0.001,1978.9,1978.8,0.49882782]
[1772898400511,0.001,1979.2,1978.8,0.49882782]
[1772898400708,0.001,1979.2,1978.7,1.2634558]
[1772898400709,0.22450664,1979.2,1978.5,0.49882782]
[1772898401346,0.22350664,1979.0,1978.5,0.49882782]
[1772898403318,1.26320044,1979.1,1978.5,0.49882782]
[1772898404830,1.26320044,1979.1,1978.6,0.49882782]
[1772898405247,0.22350664,1979.0,1978.6,0.49882782]
[1772898405549,1.26320044,1979.1,1978.6,0.49882782]
[1772898405550,5.05305709,1979.1,1978.6,0.49882782]
[1772898407345,5.47656373,1979.1,1978.6,0.49882782]
[1772898407742,5.05305709,1979.1,1978.6,0.49882782]
[1772898407943,0.42450664,1979.2,1978.6,0.49882782]
[1772898411942,0.42350664,1979.0,1978.6,0.49882782]
[1772898412145,1.26320044,1979.1,1978.6,0.49882782]
[1772898412350,1.26320044,1979.1,1978.7,0.49882782]
[1772898413160,1.26320044,1979.1,1978.7,0.49992782]
[1772898413330,1.26420044,1979.1,1978.7,0.49992782]
[1772898415040,1.68770708,1979.1,1978.7,0.49992782]
[1772898417424,1.26424105,1979.1,1978.7,0.49992782]
[1772898417827,0.42350664,1979.0,1978.7,0.49992782]
[1772898419052,0.001,1979.1,1978.8,0.49882782]
[1772898419549,0.001,1979.2,1978.8,0.49882782]
[1772898419550,0.001,1979.2,1978.9,0.49882782]
[1772898419753,5.05174604,1979.6,1978.9,0.49882782]
[1772898419754,5.47525268,1979.6,1978.9,0.49882782]
[1772898420328,0.42350664,1979.5,1978.9,0.49882782]
[1772898420828,5.05103499,1979.8,1978.9,0.49882782]
[1772898420829,5.47428295,1979.9,1978.9,0.49882782]
[1772898421031,5.05077631,1979.9,1978.9,0.49882782]
[1772898421238,0.42350664,1979.8,1978.9,0.49882782]
[1772898421755,1.68632423,1979.7,1979.1,0.4568011]
[1772898421931,0.42350664,1979.6,1979.1,0.4568011]
[1772898423762,1.26281759,1979.7,1979.1,0.4568011]
[1772898423933,1.26281759,1979.7,1979.2,0.45505588]
[1772898424857,1.68632423,1979.7,1979.2,0.45505588]
[1772898425347,0.42450664,1979.6,1979.2,0.45505588]
[1772898425554,0.42450664,1979.6,1979.0,0.45505588]
[1772898427263,1.68745182,1979.5,1979.1,0.45505588]
[1772898427761,1.26294518,1979.5,1979.1,0.45505588]
[1772898428468,5.05170506,1979.6,1979.1,0.45505588]
[1772898428672,5.05127039,1979.8,1979.1,0.45505588]
[1772898428673,0.42450664,1979.9,1979.2,0.45505588]
[1772898428845,0.33987394,1980.0,1979.2,0.45505588]
[1772898428846,1.60255011,1980.0,1979.2,0.45505588]
[1772898429170,1.60250531,1980.0,1979.2,0.45505588]
[1772898429345,2.02701195,1980.0,1979.2,0.45505588]
[1772898429672,0.42450664,1979.9,1979.2,0.45505588]
[1772898429847,0.33987394,1980.0,1979.3,0.45505588]
[1772898430540,0.33987394,1980.0,1979.5,0.45505588]
[1772898430869,0.33987394,1980.0,1979.7,0.45505588]
[1772898431366,0.13987394,1980.0,1979.7,0.45505588]
[1772898432137,1.2620526,1980.9,1979.7,0.45505588]
[1772898432357,0.48268169,1980.8,1979.7,1.74005588]
[1772898432646,0.48268169,1980.8,1979.7,1.285]
[1772898432849,0.48268169,1980.8,1979.8,0.45505588]
[1772898433143,0.48268169,1980.6,1979.8,0.45505588]
[1772898433544,0.48268169,1980.6,1979.6,1.74105588]
[1772898433770,0.48268169,1980.6,1979.4,0.45505588]
[1772898433959,0.48268169,1980.4,1979.3,4.08501036]
[1772898434767,0.48268169,1980.4,1979.4,0.45505588]
[1772898434939,1.26249873,1980.2,1979.3,4.08501036]
[1772898435138,0.48268169,1980.1,1979.3,4.08501036]
[1772898436780,0.48268169,1980.1,1979.3,4.08611036]
[1772898437149,0.48268169,1979.9,1978.8,2.9894137]
[1772898437354,0.48268169,1979.8,1978.8,0.45505588]
[1772898437558,0.48268169,1979.8,1979.0,0.0011]
[1772898440579,0.48268169,1979.6,1979.0,0.0011]
[1772898442351,1.26294518,1979.5,1979.0,0.0011]
[1772898442576,1.74562687,1979.5,1979.0,0.0011]
[1772898443355,0.48268169,1979.4,1979.0,0.0011]
[1772898444650,1.2630728,1979.3,1979.0,0.0011]